[Event "*** Titled Tuesday Blitz"]
[Site "Chess.com"]
[Date "2020.05.19"]
[Round "8"]
[White "robertofabregas"]
[Black "Akhayan"]
[Result "0-1"]
[WhiteElo "2107"]
[BlackElo "2293"]
[TimeControl "180+1"]
[EndTime "13:38:22 PDT"]
[Termination "Akhayan won by checkmate"]

1. c4 {[%clk 0:03:00.9]} 1... e6 {[%clk 0:02:59.3]} 2. Nc3 {[%clk 0:02:57.8]}
2... Nf6 {[%clk 0:02:59.4]} 3. Nf3 {[%clk 0:02:57.6]} 3... d5 {[%clk 0:02:59.2]}
4. cxd5 {[%clk 0:02:56.5]} 4... exd5 {[%clk 0:02:58.8]} 5. d4 {[%clk 0:02:54.9]}
5... c6 {[%clk 0:02:54.6]} 6. g3 {[%clk 0:02:52.5]} 6... Bd6 {[%clk 0:02:50.5]}
7. Bg2 {[%clk 0:02:52.6]} 7... O-O {[%clk 0:02:50.9]} 8. O-O {[%clk 0:02:53]}
8... Bf5 {[%clk 0:02:48.2]} 9. Re1 {[%clk 0:02:49.8]} 9... Re8 {[%clk 0:02:48]}
10. Bg5 {[%clk 0:02:48.8]} 10... h6 {[%clk 0:02:47.4]} 11. Nh4 {[%clk
0:02:35.8]} 11... Bh7 {[%clk 0:02:34.1]} 12. Bd2 {[%clk 0:02:20.8]} 12... Nbd7
{[%clk 0:02:25.9]} 13. Qc1 {[%clk 0:02:01.2]} 13... Bf8 {[%clk 0:02:18.5]} 14.
e3 {[%clk 0:01:42.6]} 14... Ne4 {[%clk 0:02:07]} 15. Nxe4 {[%clk 0:01:37.5]}
15... dxe4 {[%clk 0:02:06.7]} 16. Bh1 {[%clk 0:01:30.8]} 16... g5 {[%clk
0:02:04.3]} 17. Ng2 {[%clk 0:01:30.4]} 17... Qf6 {[%clk 0:01:53]} 18. h4 {[%clk
0:01:29.1]} 18... Nb6 {[%clk 0:01:44.6]} 19. Bc3 {[%clk 0:01:03.6]} 19... Nd5
{[%clk 0:01:43.5]} 20. Qd1 {[%clk 0:00:57.3]} 20... Qf3 {[%clk 0:01:34]} 21.
hxg5 {[%clk 0:00:44.7]} 21... Qxd1 {[%clk 0:01:29.8]} 22. Rexd1 {[%clk
0:00:41.7]} 22... hxg5 {[%clk 0:01:29.7]} 23. Ne1 {[%clk 0:00:41.4]} 23... b5
{[%clk 0:01:25.6]} 24. Rac1 {[%clk 0:00:35.1]} 24... Rac8 {[%clk 0:01:14.7]} 25.
a3 {[%clk 0:00:35.1]} 25... Nxc3 {[%clk 0:01:07.1]} 26. Rxc3 {[%clk 0:00:34.7]}
26... Bf5 {[%clk 0:01:02.1]} 27. Rdc1 {[%clk 0:00:29.1]} 27... Bd7 {[%clk
0:00:59.5]} 28. f3 {[%clk 0:00:26.6]} 28... exf3 {[%clk 0:00:54.8]} 29. Nxf3
{[%clk 0:00:27]} 29... f6 {[%clk 0:00:53.5]} 30. Nd2 {[%clk 0:00:24.7]} 30... b4
{[%clk 0:00:52.9]} 31. R3c2 {[%clk 0:00:19.7]} 31... bxa3 {[%clk 0:00:51.1]} 32.
bxa3 {[%clk 0:00:20.6]} 32... Rxe3 {[%clk 0:00:43.2]} 33. Kf2 {[%clk 0:00:17.4]}
33... Rxa3 {[%clk 0:00:38.3]} 34. Bxc6 {[%clk 0:00:17]} 34... Bxc6 {[%clk
0:00:32]} 35. Rxc6 {[%clk 0:00:17.3]} 35... Rd8 {[%clk 0:00:27]} 36. Nf3 {[%clk
0:00:16.2]} 36... Ra2+ {[%clk 0:00:26.9]} 37. R1c2 {[%clk 0:00:16]} 37... Rxc2+
{[%clk 0:00:25.9]} 38. Rxc2 {[%clk 0:00:16.9]} 38... Bd6 {[%clk 0:00:25]} 39. g4
{[%clk 0:00:16.5]} 39... a5 {[%clk 0:00:25.1]} 40. Ra2 {[%clk 0:00:16.4]} 40...
Bb4 {[%clk 0:00:24.9]} 41. Ke3 {[%clk 0:00:15.9]} 41... Kf7 {[%clk 0:00:25.1]}
42. Nd2 {[%clk 0:00:14.2]} 42... Bxd2+ {[%clk 0:00:24]} 43. Rxd2 {[%clk
0:00:12.6]} 43... Ke6 {[%clk 0:00:21.6]} 44. Ke4 {[%clk 0:00:11.3]} 44... Ra8
{[%clk 0:00:20.6]} 45. Ra2 {[%clk 0:00:10.4]} 45... Kd6 {[%clk 0:00:20.9]} 46.
Ra4 {[%clk 0:00:10.8]} 46... Ke6 {[%clk 0:00:20.3]} 47. d5+ {[%clk 0:00:09.3]}
47... Kd6 {[%clk 0:00:20.6]} 48. Kd4 {[%clk 0:00:09.4]} 48... Ra7 {[%clk
0:00:20]} 49. Ke4 {[%clk 0:00:08.1]} 49... Ra8 {[%clk 0:00:18.8]} 50. Kd4 {[%clk
0:00:08.1]} 50... Ra6 {[%clk 0:00:16.6]} 51. Ke4 {[%clk 0:00:08.5]} 51... Kc5
{[%clk 0:00:16.8]} 52. Kf5 {[%clk 0:00:07.9]} 52... Kxd5 {[%clk 0:00:16.1]} 53.
Ra2 {[%clk 0:00:07.1]} 53... Kc4 {[%clk 0:00:15.9]} 54. Rc2+ {[%clk 0:00:06.6]}
54... Kb3 {[%clk 0:00:16]} 55. Rc8 {[%clk 0:00:04.9]} 55... a4 {[%clk
0:00:16.2]} 56. Re8 {[%clk 0:00:04.3]} 56... a3 {[%clk 0:00:15.9]} 57. Re3+
{[%clk 0:00:05.2]} 57... Ka2 {[%clk 0:00:15.3]} 58. Re2+ {[%clk 0:00:04.8]}
58... Kb1 {[%clk 0:00:15.3]} 59. Re1+ {[%clk 0:00:05]} 59... Kc2 {[%clk
0:00:15.7]} 60. Re2+ {[%clk 0:00:05.4]} 60... Kd3 {[%clk 0:00:15.6]} 61. Ra2
{[%clk 0:00:05.5]} 61... Kc3 {[%clk 0:00:15.8]} 62. Kg6 {[%clk 0:00:05.3]} 62...
Kb3 {[%clk 0:00:15.9]} 63. Re2 {[%clk 0:00:04.7]} 63... a2 {[%clk 0:00:16]} 64.
Re3+ {[%clk 0:00:05.2]} 64... Kc4 {[%clk 0:00:16.3]} 65. Re4+ {[%clk 0:00:05.5]}
65... Kd5 {[%clk 0:00:16.5]} 66. Kf5 {[%clk 0:00:05.3]} 66... a1=Q {[%clk
0:00:15.2]} 67. Re5+ {[%clk 0:00:04.5]} 67... Qxe5+ {[%clk 0:00:13.7]} 68. Kg6
{[%clk 0:00:04.5]} 68... Qe8+ {[%clk 0:00:14.2]} 69. Kf5 {[%clk 0:00:04]} 69...
Ra5 {[%clk 0:00:14.1]} 70. Kxf6 {[%clk 0:00:02.9]} 70... Qe6+ {[%clk 0:00:14.1]}
71. Kxg5 {[%clk 0:00:03.8]} 71... Ke4+ {[%clk 0:00:13.3]} 72. Kh4 {[%clk
0:00:03.9]} 72... Qg6 {[%clk 0:00:12.4]} 73. Kg3 {[%clk 0:00:04.8]} 73... Qg5
{[%clk 0:00:11.8]} 74. Kf2 {[%clk 0:00:05.7]} 74... Ra3 {[%clk 0:00:11.3]} 75.
Kg1 {[%clk 0:00:06.6]} 75... Qe3+ {[%clk 0:00:11.2]} 76. Kh1 {[%clk 0:00:07.5]}
76... Qf3+ {[%clk 0:00:11.4]} 77. Kh2 {[%clk 0:00:07.9]} 77... Qg3+ {[%clk
0:00:10.8]} 78. Kh1 {[%clk 0:00:08.2]} 78... Ra1# {[%clk 0:00:10.7]} 0-1

[Event "*** Titled Tuesday Blitz"]
[Site "Chess.com"]
[Date "2020.05.19"]
[Round "8"]
[White "Robert_Chessmood"]
[Black "JustinWang1234"]
[Result "0-1"]
[WhiteElo "2872"]
[BlackElo "2602"]
[TimeControl "180+1"]
[EndTime "13:38:23 PDT"]
[Termination "JustinWang1234 won by checkmate"]

1. e4 {[%clk 0:03:00.9]} 1... e5 {[%clk 0:03:00.1]} 2. Nf3 {[%clk 0:02:58.5]}
2... Nc6 {[%clk 0:02:59.8]} 3. Bb5 {[%clk 0:02:57.2]} 3... a6 {[%clk 0:02:59.3]}
4. Ba4 {[%clk 0:02:57]} 4... Nf6 {[%clk 0:02:59.5]} 5. O-O {[%clk 0:02:57.6]}
5... Be7 {[%clk 0:02:59.7]} 6. Bxc6 {[%clk 0:02:55]} 6... dxc6 {[%clk
0:02:57.7]} 7. d3 {[%clk 0:02:54]} 7... Nd7 {[%clk 0:02:56.9]} 8. Be3 {[%clk
0:02:53]} 8... c5 {[%clk 0:02:54.7]} 9. Nc3 {[%clk 0:02:52.9]} 9... b6 {[%clk
0:02:52.2]} 10. Nd2 {[%clk 0:02:39.7]} 10... Bb7 {[%clk 0:02:51.4]} 11. Nc4
{[%clk 0:02:39.1]} 11... Bf6 {[%clk 0:02:29.2]} 12. a4 {[%clk 0:02:30.9]} 12...
a5 {[%clk 0:02:28]} 13. Nd5 {[%clk 0:02:22.7]} 13... Bxd5 {[%clk 0:02:15.9]} 14.
exd5 {[%clk 0:02:23.6]} 14... O-O {[%clk 0:02:16.1]} 15. Qf3 {[%clk 0:02:14.9]}
15... g6 {[%clk 0:02:04.3]} 16. Rae1 {[%clk 0:02:06.5]} 16... Bg7 {[%clk
0:02:02.5]} 17. d6 {[%clk 0:02:06]} 17... cxd6 {[%clk 0:02:00]} 18. Nxd6 {[%clk
0:02:06.9]} 18... Nf6 {[%clk 0:01:49.3]} 19. Qc6 {[%clk 0:01:48.8]} 19... Qd7
{[%clk 0:01:35.3]} 20. Qxb6 {[%clk 0:01:31.2]} 20... Rfb8 {[%clk 0:01:23.8]} 21.
Qxc5 {[%clk 0:01:31.2]} 21... Bf8 {[%clk 0:01:15.3]} 22. Qxe5 {[%clk 0:01:02.5]}
22... Qxd6 {[%clk 0:01:13.9]} 23. Bd4 {[%clk 0:00:57.6]} 23... Qxe5 {[%clk
0:01:13.1]} 24. Bxe5 {[%clk 0:00:58]} 24... Rb6 {[%clk 0:01:13.5]} 25. Re2
{[%clk 0:00:47.6]} 25... Nd7 {[%clk 0:01:11.4]} 26. Bd4 {[%clk 0:00:45.1]} 26...
Rd6 {[%clk 0:01:06.7]} 27. Bc3 {[%clk 0:00:44.2]} 27... Bg7 {[%clk 0:00:59.7]}
28. Bxg7 {[%clk 0:00:39.2]} 28... Kxg7 {[%clk 0:01:00.6]} 29. g3 {[%clk
0:00:40]} 29... Nc5 {[%clk 0:00:50.5]} 30. b3 {[%clk 0:00:39]} 30... Ne6 {[%clk
0:00:47.7]} 31. Re4 {[%clk 0:00:37.1]} 31... Rc8 {[%clk 0:00:46.1]} 32. Rc4
{[%clk 0:00:26.8]} 32... Rxc4 {[%clk 0:00:40.5]} 33. bxc4 {[%clk 0:00:27.7]}
33... Rb6 {[%clk 0:00:40.5]} 34. Rd1 {[%clk 0:00:27.9]} 34... Nd4 {[%clk
0:00:38.1]} 35. c3 {[%clk 0:00:20.6]} 35... Ne2+ {[%clk 0:00:36.2]} 36. Kf1
{[%clk 0:00:21]} 36... Nxc3 {[%clk 0:00:36.8]} 37. Rd2 {[%clk 0:00:18.6]} 37...
Nxa4 {[%clk 0:00:33.6]} 38. Ra2 {[%clk 0:00:18.5]} 38... Rb4 {[%clk 0:00:33.4]}
39. Kg2 {[%clk 0:00:18.4]} 39... Kf6 {[%clk 0:00:32.6]} 40. Kf3 {[%clk 0:00:18]}
40... Ke6 {[%clk 0:00:28.9]} 41. Ke3 {[%clk 0:00:16.6]} 41... Kd6 {[%clk
0:00:29.4]} 42. h4 {[%clk 0:00:16.4]} 42... Kc6 {[%clk 0:00:27.8]} 43. h5 {[%clk
0:00:16.6]} 43... Kb6 {[%clk 0:00:25.2]} 44. h6 {[%clk 0:00:16.2]} 44... Nc5
{[%clk 0:00:18.7]} 45. d4 {[%clk 0:00:13]} 45... Nd7 {[%clk 0:00:16.7]} 46. Kd3
{[%clk 0:00:07.2]} 46... Rb3+ {[%clk 0:00:15.8]} 47. Ke4 {[%clk 0:00:07]} 47...
Rb4 {[%clk 0:00:15]} 48. Kd5 {[%clk 0:00:04.4]} 48... Nf6+ {[%clk 0:00:15.2]}
49. Ke5 {[%clk 0:00:04.5]} 49... Ng4+ {[%clk 0:00:15.5]} 50. Kf4 {[%clk
0:00:04.6]} 50... Nxh6 {[%clk 0:00:15]} 51. Rc2 {[%clk 0:00:04.5]} 51... Nf5
{[%clk 0:00:14.8]} 52. Ke5 {[%clk 0:00:04.8]} 52... a4 {[%clk 0:00:13.4]} 53. g4
{[%clk 0:00:05.2]} 53... Ne7 {[%clk 0:00:11.9]} 54. Kd6 {[%clk 0:00:05.6]} 54...
Nc8+ {[%clk 0:00:11.7]} 55. Kd7 {[%clk 0:00:05.6]} 55... Na7 {[%clk 0:00:09.7]}
56. d5 {[%clk 0:00:05.2]} 56... Kc5 {[%clk 0:00:09.7]} 57. Ke7 {[%clk
0:00:03.9]} 57... Rb7+ {[%clk 0:00:09.8]} 58. Kf6 {[%clk 0:00:04.3]} 58... Nc8
{[%clk 0:00:09.8]} 59. Ra2 {[%clk 0:00:04]} 59... Ra7 {[%clk 0:00:10.2]} 60. g5
{[%clk 0:00:04.5]} 60... Nd6 {[%clk 0:00:10]} 61. Kg7 {[%clk 0:00:04.4]} 61...
Kxc4 {[%clk 0:00:10.2]} 62. Kxh7 {[%clk 0:00:04.5]} 62... a3 {[%clk 0:00:10.3]}
63. f4 {[%clk 0:00:04]} 63... Kxd5 {[%clk 0:00:10.4]} 64. Kg7 {[%clk 0:00:04.9]}
64... Kc4 {[%clk 0:00:09.7]} 65. Kf6 {[%clk 0:00:05.1]} 65... Ne4+ {[%clk
0:00:09.3]} 66. Ke5 {[%clk 0:00:05]} 66... Nc3 {[%clk 0:00:09.5]} 67. Ra1 {[%clk
0:00:04.6]} 67... a2 {[%clk 0:00:09.7]} 68. f5 {[%clk 0:00:05.3]} 68... Ra5+
{[%clk 0:00:09.4]} 69. Kf6 {[%clk 0:00:04]} 69... Rxf5+ {[%clk 0:00:09.6]} 70.
Kg7 {[%clk 0:00:04.6]} 70... Rxg5 {[%clk 0:00:10]} 71. Rf1 {[%clk 0:00:04.2]}
71... Rf5 {[%clk 0:00:09.9]} 72. Rg1 {[%clk 0:00:04.2]} 72... Rb5 {[%clk
0:00:09.2]} 73. Rg4+ {[%clk 0:00:04.7]} 73... Kb3 {[%clk 0:00:09.4]} 74. Rg1
{[%clk 0:00:05.3]} 74... Nb1 {[%clk 0:00:09.3]} 75. Rg3+ {[%clk 0:00:05.3]}
75... Kb4 {[%clk 0:00:08.9]} 76. Rg4+ {[%clk 0:00:05.6]} 76... Ka5 {[%clk
0:00:09.2]} 77. Re4 {[%clk 0:00:05.3]} 77... a1=Q+ {[%clk 0:00:08.8]} 78. Kh7
{[%clk 0:00:06.2]} 78... Rh5+ {[%clk 0:00:08.4]} 79. Kg8 {[%clk 0:00:06.3]}
79... Qh8+ {[%clk 0:00:09]} 80. Kxf7 {[%clk 0:00:06.6]} 80... Rf5+ {[%clk
0:00:09.5]} 81. Ke6 {[%clk 0:00:06.1]} 81... Qf6+ {[%clk 0:00:09.6]} 82. Kd7
{[%clk 0:00:06.3]} 82... Rd5+ {[%clk 0:00:10]} 83. Kc7 {[%clk 0:00:06.2]} 83...
Qd6+ {[%clk 0:00:09.9]} 84. Kc8 {[%clk 0:00:06.5]} 84... Rc5+ {[%clk 0:00:10.2]}
85. Kb7 {[%clk 0:00:07.1]} 85... Qb6+ {[%clk 0:00:10.2]} 86. Ka8 {[%clk
0:00:07.7]} 86... Rc8# {[%clk 0:00:10.9]} 0-1

[Event "*** Titled Tuesday Blitz"]
[Site "Chess.com"]
[Date "2020.05.19"]
[Round "8"]
[White "OK97"]
[Black "TregubovP"]
[Result "1-0"]
[WhiteElo "2740"]
[BlackElo "2562"]
[TimeControl "180+1"]
[EndTime "13:38:27 PDT"]
[Termination "OK97 won by resignation"]

1. Nf3 {[%clk 0:03:00.9]} 1... Nf6 {[%clk 0:02:59.5]} 2. c4 {[%clk 0:03:00.8]}
2... c5 {[%clk 0:02:59.4]} 3. d4 {[%clk 0:03:00.5]} 3... cxd4 {[%clk 0:02:57.3]}
4. Nxd4 {[%clk 0:03:01.4]} 4... Nc6 {[%clk 0:02:56.5]} 5. Nc3 {[%clk 0:03:01.4]}
5... Qb6 {[%clk 0:02:56.1]} 6. Nb3 {[%clk 0:02:56.7]} 6... e6 {[%clk 0:02:54.8]}
7. e4 {[%clk 0:02:50.5]} 7... Bb4 {[%clk 0:02:51.9]} 8. Bd3 {[%clk 0:02:51]}
8... Ne5 {[%clk 0:02:52]} 9. O-O {[%clk 0:02:46.2]} 9... Qd6 {[%clk 0:02:51.6]}
10. Bc2 {[%clk 0:02:18.2]} 10... Qxd1 {[%clk 0:02:43.4]} 11. Rxd1 {[%clk
0:02:19.1]} 11... Nxc4 {[%clk 0:02:43.3]} 12. Rd4 {[%clk 0:02:14.3]} 12... Bxc3
{[%clk 0:02:38.9]} 13. Rxc4 {[%clk 0:02:01.8]} 13... Be5 {[%clk 0:02:36.6]} 14.
f4 {[%clk 0:02:01.9]} 14... d5 {[%clk 0:02:32.9]} 15. Rxc8+ {[%clk 0:01:39.1]}
15... Rxc8 {[%clk 0:02:30.1]} 16. fxe5 {[%clk 0:01:40]} 16... Nxe4 {[%clk
0:02:09.2]} 17. Bxe4 {[%clk 0:01:30]} 17... dxe4 {[%clk 0:02:08.8]} 18. Be3
{[%clk 0:01:30.2]} 18... b6 {[%clk 0:02:04.8]} 19. Nd4 {[%clk 0:01:18.9]} 19...
Ke7 {[%clk 0:01:52.2]} 20. Rf1 {[%clk 0:01:13.6]} 20... f6 {[%clk 0:01:47.4]}
21. Nb5 {[%clk 0:01:08]} 21... Rc2 {[%clk 0:01:37.6]} 22. exf6+ {[%clk 0:01:08]}
22... gxf6 {[%clk 0:01:37]} 23. Bd4 {[%clk 0:01:01.1]} 23... e5 {[%clk 0:01:35]}
24. Bc3 {[%clk 0:00:58.6]} 24... a6 {[%clk 0:01:30.2]} 25. Nc7 {[%clk
0:00:43.8]} 25... Rd8 {[%clk 0:01:15.3]} 26. Nxa6 {[%clk 0:00:32.2]} 26... e3
{[%clk 0:01:04.5]} 27. Nb4 {[%clk 0:00:28.2]} 27... Rxc3 {[%clk 0:01:01.3]} 28.
bxc3 {[%clk 0:00:27.7]} 28... Ke6 {[%clk 0:00:50.6]} 29. Re1 {[%clk 0:00:26.7]}
29... f5 {[%clk 0:00:43.3]} 30. Rxe3 {[%clk 0:00:26.8]} 30... e4 {[%clk
0:00:43.4]} 31. Kf2 {[%clk 0:00:22.4]} 31... Rd1 {[%clk 0:00:38.1]} 32. Re2
{[%clk 0:00:17.9]} 32... Ke5 {[%clk 0:00:35.7]} 33. g3 {[%clk 0:00:15.7]} 33...
h5 {[%clk 0:00:35.2]} 34. h4 {[%clk 0:00:15.2]} 34... Rh1 {[%clk 0:00:33.7]} 35.
Nc2 {[%clk 0:00:13.9]} 35... f4 {[%clk 0:00:31.4]} 36. gxf4+ {[%clk 0:00:12]}
36... Kxf4 {[%clk 0:00:31.5]} 37. Ne3 {[%clk 0:00:12.4]} 37... Rc1 {[%clk
0:00:27.1]} 38. Nd5+ {[%clk 0:00:09.9]} 38... Ke5 {[%clk 0:00:26.5]} 39. Rd2
{[%clk 0:00:07.8]} 39... b5 {[%clk 0:00:25]} 40. Ke2 {[%clk 0:00:05.7]} 40...
Rh1 {[%clk 0:00:24]} 41. Nc7 {[%clk 0:00:04.5]} 41... Rxh4 {[%clk 0:00:23]} 42.
Rd5+ {[%clk 0:00:04.7]} 42... Kf4 {[%clk 0:00:20.8]} 43. Ne6+ {[%clk 0:00:05.3]}
43... Kg3 {[%clk 0:00:19.3]} 44. Rxb5 {[%clk 0:00:05.6]} 44... Rh2+ {[%clk
0:00:18]} 45. Ke3 {[%clk 0:00:06.1]} 45... Rxa2 {[%clk 0:00:17.9]} 46. Rxh5
{[%clk 0:00:05.5]} 46... Kg4 {[%clk 0:00:16.2]} 47. Re5 {[%clk 0:00:04.1]} 47...
Ra3 {[%clk 0:00:14]} 48. Rxe4+ {[%clk 0:00:04.1]} 48... Kf5 {[%clk 0:00:14.5]}
49. Nd4+ {[%clk 0:00:04.3]} 49... Kf6 {[%clk 0:00:13.8]} 50. Ne2 {[%clk
0:00:04.9]} 50... Kf5 {[%clk 0:00:13.5]} 51. Rd4 {[%clk 0:00:04.8]} 51... Ke5
{[%clk 0:00:13.3]} 52. Kd3 {[%clk 0:00:05.3]} 52... Ra2 {[%clk 0:00:13.1]} 53.
Nc1 {[%clk 0:00:04.5]} 53... Ra3 {[%clk 0:00:12.4]} 54. Kc2 {[%clk 0:00:04.1]}
54... Ra1 {[%clk 0:00:11.2]} 55. Nd3+ {[%clk 0:00:04]} 55... Ke6 {[%clk
0:00:10.8]} 56. Nc5+ {[%clk 0:00:04.2]} 56... Ke5 {[%clk 0:00:10.5]} 57. Nb3
{[%clk 0:00:05.1]} 57... Ra2+ {[%clk 0:00:10.2]} 58. Kd3 {[%clk 0:00:05]} 58...
Ra3 {[%clk 0:00:10.4]} 59. Kc4 {[%clk 0:00:05.3]} 59... Ra4+ {[%clk 0:00:08.9]}
60. Kb5 {[%clk 0:00:04.8]} 60... Ra3 {[%clk 0:00:09.3]} 61. Rb4 {[%clk
0:00:04.7]} 61... Kd6 {[%clk 0:00:07.6]} 62. c4 {[%clk 0:00:04.9]} 62... Kc7
{[%clk 0:00:07.9]} 63. c5 {[%clk 0:00:05.4]} 63... Ra8 {[%clk 0:00:06.7]} 64.
Kc4 {[%clk 0:00:05.8]} 64... Ra2 {[%clk 0:00:06]} 65. Nd4 {[%clk 0:00:06.2]}
65... Rd2 {[%clk 0:00:05.9]} 66. c6 {[%clk 0:00:06.2]} 66... Rd1 {[%clk
0:00:05.3]} 67. Rb7+ {[%clk 0:00:06.3]} 67... Kc8 {[%clk 0:00:05.3]} 68. Kc5
{[%clk 0:00:06.9]} 68... Rc1+ {[%clk 0:00:05.4]} 69. Kd5 {[%clk 0:00:07.4]}
69... Rd1 {[%clk 0:00:05.5]} 70. Rf7 {[%clk 0:00:06.5]} 70... Rh1 {[%clk
0:00:04.8]} 71. Rf8+ {[%clk 0:00:06.8]} 71... Kc7 {[%clk 0:00:04.4]} 72. Nb5+
{[%clk 0:00:07.3]} 72... Kb6 {[%clk 0:00:04.9]} 73. Rb8+ {[%clk 0:00:07.6]}
73... Ka6 {[%clk 0:00:04.1]} 74. c7 {[%clk 0:00:07.7]} 74... Rh5+ {[%clk
0:00:03.9]} 75. Ke4 {[%clk 0:00:05.6]} 75... Rh4+ {[%clk 0:00:04.2]} 76. Kf3
{[%clk 0:00:05.7]} 76... Rc4 {[%clk 0:00:04.1]} 77. c8=Q+ {[%clk 0:00:05.8]}
77... Rxc8 {[%clk 0:00:04.6]} 78. Rxc8 {[%clk 0:00:06.7]} 1-0

[Event "*** Titled Tuesday Blitz"]
[Site "Chess.com"]
[Date "2020.05.19"]
[Round "8"]
[White "Joshukid"]
[Black "praveenb2002"]
[Result "1/2-1/2"]
[WhiteElo "2562"]
[BlackElo "2717"]
[TimeControl "180+1"]
[EndTime "13:38:27 PDT"]
[Termination "Game drawn by repetition"]

1. Nf3 {[%clk 0:02:55.8]} 1... d5 {[%clk 0:02:59.9]} 2. c4 {[%clk 0:02:55.9]}
2... d4 {[%clk 0:02:59.8]} 3. b4 {[%clk 0:02:55]} 3... f6 {[%clk 0:02:58.5]} 4.
e3 {[%clk 0:02:54.2]} 4... e5 {[%clk 0:02:58.4]} 5. c5 {[%clk 0:02:53.1]} 5...
a5 {[%clk 0:02:55.8]} 6. Qa4+ {[%clk 0:02:48]} 6... Bd7 {[%clk 0:02:45.2]} 7. b5
{[%clk 0:02:45.3]} 7... Bxc5 {[%clk 0:02:44.8]} 8. Bc4 {[%clk 0:02:41.3]} 8...
Ne7 {[%clk 0:02:30.4]} 9. O-O {[%clk 0:02:34.8]} 9... Bb6 {[%clk 0:02:12.7]} 10.
Ba3 {[%clk 0:02:27.8]} 10... Bg4 {[%clk 0:02:10.1]} 11. Ne1 {[%clk 0:02:04.5]}
11... Nd7 {[%clk 0:02:04.5]} 12. exd4 {[%clk 0:01:55.1]} 12... Bxd4 {[%clk
0:02:03.2]} 13. Nc3 {[%clk 0:01:50.6]} 13... Nb6 {[%clk 0:02:02.4]} 14. Qb3
{[%clk 0:01:50.1]} 14... Nxc4 {[%clk 0:01:56.8]} 15. Qxc4 {[%clk 0:01:51]} 15...
Qd7 {[%clk 0:01:40.2]} 16. Nc2 {[%clk 0:01:45]} 16... Be6 {[%clk 0:01:37.9]} 17.
Qe2 {[%clk 0:01:41.1]} 17... O-O {[%clk 0:01:34.5]} 18. Nxd4 {[%clk 0:01:41]}
18... exd4 {[%clk 0:01:34.5]} 19. Bxe7 {[%clk 0:01:23.9]} 19... Qxe7 {[%clk
0:01:31.7]} 20. Nd5 {[%clk 0:01:24.2]} 20... Qf7 {[%clk 0:01:18.8]} 21. Nxc7
{[%clk 0:01:21.9]} 21... Bc4 {[%clk 0:01:07.6]} 22. d3 {[%clk 0:01:22.1]} 22...
Qxc7 {[%clk 0:01:07.6]} 23. dxc4 {[%clk 0:01:22.5]} 23... Rad8 {[%clk 0:01:04]}
24. Rfd1 {[%clk 0:00:59.1]} 24... Rfe8 {[%clk 0:01:01.2]} 25. Qd3 {[%clk
0:00:55.2]} 25... Qc5 {[%clk 0:00:58.2]} 26. Rac1 {[%clk 0:00:52.1]} 26... Re5
{[%clk 0:00:57.1]} 27. h3 {[%clk 0:00:51.9]} 27... Rde8 {[%clk 0:00:54.3]} 28.
Kh2 {[%clk 0:00:51.1]} 28... Re4 {[%clk 0:00:49.5]} 29. Rc2 {[%clk 0:00:48.4]}
29... Qe5+ {[%clk 0:00:48.9]} 30. Qg3 {[%clk 0:00:48.3]} 30... Qc5 {[%clk
0:00:43.9]} 31. Rd3 {[%clk 0:00:39.5]} 31... h5 {[%clk 0:00:34.2]} 32. Rd1
{[%clk 0:00:21]} 32... h4 {[%clk 0:00:32.7]} 33. Qd3 {[%clk 0:00:21.1]} 33...
Qe5+ {[%clk 0:00:32.4]} 34. g3 {[%clk 0:00:21.2]} 34... hxg3+ {[%clk 0:00:31]}
35. Qxg3 {[%clk 0:00:21.2]} 35... Qc5 {[%clk 0:00:26.2]} 36. Rg1 {[%clk
0:00:18.2]} 36... R8e7 {[%clk 0:00:26.4]} 37. Rd1 {[%clk 0:00:16.7]} 37... Kh7
{[%clk 0:00:23.4]} 38. a3 {[%clk 0:00:15]} 38... Qh5 {[%clk 0:00:18.3]} 39. Rcd2
{[%clk 0:00:10.2]} 39... Qe5 {[%clk 0:00:16.1]} 40. Qxe5 {[%clk 0:00:07.9]}
40... fxe5 {[%clk 0:00:16.7]} 41. c5 {[%clk 0:00:08.5]} 41... Rc7 {[%clk
0:00:16.9]} 42. Rc1 {[%clk 0:00:08.1]} 42... Rf4 {[%clk 0:00:16.6]} 43. c6
{[%clk 0:00:07.3]} 43... bxc6 {[%clk 0:00:16.6]} 44. bxc6 {[%clk 0:00:06.5]}
44... Rf6 {[%clk 0:00:16.8]} 45. Rc5 {[%clk 0:00:06.9]} 45... Re6 {[%clk
0:00:08.8]} 46. Rxa5 {[%clk 0:00:06.5]} 46... Rcxc6 {[%clk 0:00:08.9]} 47. Rd5
{[%clk 0:00:05.3]} 47... Ra6 {[%clk 0:00:08.7]} 48. Rd3 {[%clk 0:00:05.8]} 48...
Kg6 {[%clk 0:00:08.3]} 49. Kg3 {[%clk 0:00:06.1]} 49... Kf5 {[%clk 0:00:05.9]}
50. f3 {[%clk 0:00:05.1]} 50... Rg6+ {[%clk 0:00:05.8]} 51. Kf2 {[%clk
0:00:04.6]} 51... Rab6 {[%clk 0:00:06.3]} 52. R3xd4 {[%clk 0:00:04.6]} 52...
Rb2+ {[%clk 0:00:05.9]} 53. Rd2 {[%clk 0:00:05.2]} 53... Rb3 {[%clk 0:00:05.6]}
54. R5d3 {[%clk 0:00:05.4]} 54... Rgb6 {[%clk 0:00:04.6]} 55. Rxb3 {[%clk
0:00:04.3]} 55... Rxb3 {[%clk 0:00:05.5]} 56. Ra2 {[%clk 0:00:04.6]} 56... Rb5
{[%clk 0:00:05.8]} 57. a4 {[%clk 0:00:05]} 57... Ra5 {[%clk 0:00:06.3]} 58. Ke3
{[%clk 0:00:05.6]} 58... g5 {[%clk 0:00:06.7]} 59. Ra3 {[%clk 0:00:06.2]} 59...
Kg6 {[%clk 0:00:03.7]} 60. Ke4 {[%clk 0:00:07.1]} 60... Kh5 {[%clk 0:00:04.3]}
61. Ra2 {[%clk 0:00:07.1]} 61... Kh4 {[%clk 0:00:04.6]} 62. Kf5 {[%clk
0:00:07.5]} 62... Kxh3 {[%clk 0:00:04.4]} 63. Kxg5 {[%clk 0:00:08.1]} 63... Kg3
{[%clk 0:00:02]} 64. Kf5 {[%clk 0:00:06.8]} 64... Kxf3 {[%clk 0:00:02.4]} 65.
Ra3+ {[%clk 0:00:07.7]} 65... Kf2 {[%clk 0:00:02.5]} 66. Ke4 {[%clk 0:00:08.6]}
66... Ke2 {[%clk 0:00:03.1]} 67. Ra2+ {[%clk 0:00:09.3]} 67... Kd1 {[%clk
0:00:03.3]} 68. Kd3 {[%clk 0:00:10.2]} 68... Kc1 {[%clk 0:00:03.8]} 69. Kc3
{[%clk 0:00:10.7]} 69... Kb1 {[%clk 0:00:04.3]} 70. Ra3 {[%clk 0:00:11.1]} 70...
Ra8 {[%clk 0:00:04.5]} 71. a5 {[%clk 0:00:10.8]} 71... Ra6 {[%clk 0:00:04.7]}
72. Kc4 {[%clk 0:00:10.4]} 72... e4 {[%clk 0:00:05]} 73. Kd4 {[%clk 0:00:10.7]}
73... Kb2 {[%clk 0:00:05.3]} 74. Ra4 {[%clk 0:00:09.2]} 74... Kb3 {[%clk
0:00:05.7]} 75. Ra1 {[%clk 0:00:09.7]} 75... Kb2 {[%clk 0:00:06.3]} 76. Ra4
{[%clk 0:00:09.8]} 76... Kb3 {[%clk 0:00:06.7]} 77. Ra1 {[%clk 0:00:10]} 77...
Kb2 {[%clk 0:00:07.1]} 78. Ra4 {[%clk 0:00:07.3]} 1/2-1/2